[Event "Titled Tuesday Blitz November 29 Early 2022"]
[White "Ismayil, Malak"]
[Black "Tsatsalashvili, Keti"]
[WhiteFideId "13412604"]
[BlackFideId "13603434"]
[WhiteElo "1879"]
[BlackElo "2220"]
[Result "1/2-1/2"]
[Round "08"]
[TimeControl "180+1"]
[Date "2022.11.30"]
[WhiteClock "0:00:02"]
[BlackClock "0:00:09"]

1. e4 {[%clk 0:03:00]}  c6 {[%clk 0:02:52]} 2. d4 {[%clk 0:03:00]}  d5 {[%clk 0:02:51]} 3. Nc3 {[%clk 0:03:01]}  dxe4 {[%clk 0:02:51]} 4. Nxe4 {[%clk 0:03:02]}  Bf5 {[%clk 0:02:50]} 5. Ng3 {[%clk 0:03:02]}  Bg6 {[%clk 0:02:51]} 6. h4 {[%clk 0:03:02]}  h6 {[%clk 0:02:51]} 7. h5 {[%clk 0:03:02]}  Bh7 {[%clk 0:02:52]} 8. Nf3 {[%clk 0:03:02]}  Nd7 {[%clk 0:02:51]} 9. Bd3 {[%clk 0:03:03]}  Bxd3 {[%clk 0:02:52]} 10. Qxd3 {[%clk 0:03:04]}  e6 {[%clk 0:02:52]} 11. Bd2 {[%clk 0:03:04]}  Ngf6 {[%clk 0:02:53]} 12. O-O-O {[%clk 0:03:05]}  Be7 {[%clk 0:02:51]} 13. Ne4 {[%clk 0:03:05]}  Nxe4 {[%clk 0:02:51]} 14. Qxe4 {[%clk 0:03:06]}  Nf6 {[%clk 0:02:51]} 15. Qe2 {[%clk 0:03:07]}  Qc7 {[%clk 0:02:52]} 16. c4 {[%clk 0:02:59]}  O-O-O {[%clk 0:02:51]} 17. Bc3 {[%clk 0:02:58]}  Qf4+ {[%clk 0:02:47]} 18. Qe3 {[%clk 0:02:50]}  Qxe3+ {[%clk 0:02:45]} 19. fxe3 {[%clk 0:02:51]}  Ne4 {[%clk 0:02:38]} 20. Be1 {[%clk 0:02:34]}  Rhf8 {[%clk 0:02:29]} 21. Bh4 {[%clk 0:02:02]}  Rd7 {[%clk 0:02:10]} 22. Bxe7 {[%clk 0:01:55]}  Rxe7 {[%clk 0:02:11]} 23. Rh4 {[%clk 0:01:49]}  Nd6 {[%clk 0:02:06]} 24. b3 {[%clk 0:01:39]}  Nf5 {[%clk 0:02:05]} 25. Re4 {[%clk 0:01:39]}  Ng3 {[%clk 0:01:56]} 26. Rh4 {[%clk 0:01:37]}  Nf5 {[%clk 0:01:55]} 27. Re4 {[%clk 0:01:33]}  Ng3 {[%clk 0:01:49]} 28. Rg4 {[%clk 0:01:28]}  Nxh5 {[%clk 0:01:38]} 29. Rh1 {[%clk 0:01:27]}  g6 {[%clk 0:01:38]} 30. Ne5 {[%clk 0:01:26]}  Rd8 {[%clk 0:01:19]} 31. Rf1 {[%clk 0:01:23]}  f5 {[%clk 0:01:04]} 32. Rxg6 {[%clk 0:01:20]}  Rg7 {[%clk 0:01:00]} 33. Rxh6 {[%clk 0:01:12]}  Ng3 {[%clk 0:00:59]} 34. Rf2 {[%clk 0:01:04]}  Ne4 {[%clk 0:00:57]} 35. Rc2 {[%clk 0:01:04]}  Re8 {[%clk 0:00:54]} 36. c5 {[%clk 0:01:00]}  Rg3 {[%clk 0:00:51]} 37. Re2 {[%clk 0:00:58]}  Nc3 {[%clk 0:00:50]} 38. Rc2 {[%clk 0:00:55]}  Nd5 {[%clk 0:00:46]} 39. Nc4 {[%clk 0:00:55]}  Kd7 {[%clk 0:00:34]} 40. Rh7+ {[%clk 0:00:42]}  Re7 {[%clk 0:00:33]} 41. Ne5+ {[%clk 0:00:39]}  Kd8 {[%clk 0:00:30]} 42. Rh8+ {[%clk 0:00:38]}  Kc7 {[%clk 0:00:31]} 43. Nc4 {[%clk 0:00:35]}  Reg7 {[%clk 0:00:27]} 44. Re8 {[%clk 0:00:12]}  Rxg2 {[%clk 0:00:19]} 45. Rxe6 {[%clk 0:00:07]}  Rxc2+ {[%clk 0:00:15]} 46. Kxc2 {[%clk 0:00:07]}  Nb4+ {[%clk 0:00:16]} 47. Kb2 {[%clk 0:00:05]}  Rg2+ {[%clk 0:00:12]} 48. Kb1 {[%clk 0:00:06]}  Rg1+ {[%clk 0:00:08]} 49. Kb2 {[%clk 0:00:05]}  Rg2+ {[%clk 0:00:09]} 50. Kb1 {[%clk 0:00:02]}  Rg1+ {[%clk 0:00:09]} 51. Kb2 {[%clk 0:00:02]}  Rg2+ {[%clk 0:00:09]} 1/2-1/2


[Site "https://www.chess.com"]

[Event "Titled Tuesday Blitz November 29 Early 2022"]
[White "Jiganchine, Roman"]
[Black "Remizov, Yaroslav"]
[WhiteFideId "2603667"]
[BlackFideId "34134015"]
[WhiteElo "2316"]
[BlackElo "2414"]
[Result "1-0"]
[Round "08"]
[TimeControl "180+1"]
[Date "2022.11.30"]
[WhiteClock "0:00:30"]
[BlackClock "0:00:03"]

1. e4 {[%clk 0:02:59]}  e6 {[%clk 0:02:58]} 2. d4 {[%clk 0:02:57]}  d5 {[%clk 0:02:58]} 3. Nd2 {[%clk 0:02:57]}  c5 {[%clk 0:02:56]} 4. c3 {[%clk 0:02:56]}  Nc6 {[%clk 0:02:54]} 5. Ngf3 {[%clk 0:02:56]}  cxd4 {[%clk 0:02:47]} 6. cxd4 {[%clk 0:02:56]}  dxe4 {[%clk 0:02:43]} 7. Nxe4 {[%clk 0:02:55]}  Nf6 {[%clk 0:02:43]} 8. Nxf6+ {[%clk 0:02:50]}  Qxf6 {[%clk 0:02:40]} 9. Bd3 {[%clk 0:02:42]}  Bb4+ {[%clk 0:02:37]} 10. Kf1 {[%clk 0:02:40]}  h6 {[%clk 0:02:26]} 11. g4 {[%clk 0:02:37]}  Qe7 {[%clk 0:01:49]} 12. g5 {[%clk 0:02:26]}  h5 {[%clk 0:01:41]} 13. g6 {[%clk 0:02:23]}  f6 {[%clk 0:01:40]} 14. Bf4 {[%clk 0:02:09]}  Bd6 {[%clk 0:01:39]} 15. Qd2 {[%clk 0:01:55]}  Bd7 {[%clk 0:01:31]} 16. Kg2 {[%clk 0:01:46]}  O-O {[%clk 0:01:26]} 17. Rhe1 {[%clk 0:01:37]}  Nb4 {[%clk 0:01:04]} 18. Bc4 {[%clk 0:01:34]}  Bxf4 {[%clk 0:00:46]} 19. Qxf4 {[%clk 0:01:34]}  Qe8 {[%clk 0:00:47]} 20. Qg3 {[%clk 0:01:13]}  b5 {[%clk 0:00:36]} 21. Bb3 {[%clk 0:01:08]}  a5 {[%clk 0:00:37]} 22. d5 {[%clk 0:00:52]}  e5 {[%clk 0:00:34]} 23. d6+ {[%clk 0:00:46]}  Be6 {[%clk 0:00:22]} 24. d7 {[%clk 0:00:39]}  Qxd7 {[%clk 0:00:20]} 25. Rad1 {[%clk 0:00:39]}  Qc8 {[%clk 0:00:20]} 26. Qh4 {[%clk 0:00:30]}  Bxb3 {[%clk 0:00:03]} 27. Qxh5 {[%clk 0:00:30]} 1-0


[Site "https://www.chess.com"]

[Event "Titled Tuesday Blitz November 29 Early 2022"]
[White "Kosakowski, Jakub"]
[Black "Sadykov, Ramil"]
[WhiteFideId "1185080"]
[BlackFideId "24113590"]
[WhiteElo "2463"]
[BlackElo "2245"]
[Result "1-0"]
[Round "08"]
[TimeControl "180+1"]
[Date "2022.11.30"]
[WhiteClock "0:00:06"]
[BlackClock "0:00:02"]

1. d4 {[%clk 0:03:00]}  Nf6 {[%clk 0:02:55]} 2. c4 {[%clk 0:02:59]}  g6 {[%clk 0:02:55]} 3. g3 {[%clk 0:02:58]}  Bg7 {[%clk 0:02:54]} 4. Bg2 {[%clk 0:02:58]}  d5 {[%clk 0:02:55]} 5. cxd5 {[%clk 0:02:58]}  Nxd5 {[%clk 0:02:56]} 6. Nf3 {[%clk 0:02:58]}  O-O {[%clk 0:02:55]} 7. O-O {[%clk 0:02:59]}  Nb6 {[%clk 0:02:55]} 8. Nc3 {[%clk 0:02:59]}  Nc6 {[%clk 0:02:54]} 9. d5 {[%clk 0:02:59]}  Na5 {[%clk 0:02:54]} 10. e4 {[%clk 0:02:59]}  c6 {[%clk 0:02:53]} 11. Bf4 {[%clk 0:02:59]}  cxd5 {[%clk 0:02:52]} 12. exd5 {[%clk 0:02:59]}  Nac4 {[%clk 0:02:51]} 13. Qb3 {[%clk 0:02:51]}  e5 {[%clk 0:02:27]} 14. Bg5 {[%clk 0:02:42]}  f6 {[%clk 0:02:26]} 15. Be3 {[%clk 0:02:42]}  Nxe3 {[%clk 0:02:23]} 16. fxe3 {[%clk 0:02:43]}  Kh8 {[%clk 0:02:20]} 17. Nd2 {[%clk 0:02:32]}  Bg4 {[%clk 0:02:17]} 18. a4 {[%clk 0:02:31]}  a5 {[%clk 0:02:08]} 19. Rac1 {[%clk 0:02:20]}  Bh6 {[%clk 0:01:58]} 20. Nb5 {[%clk 0:02:19]}  Rc8 {[%clk 0:01:53]} 21. d6 {[%clk 0:02:14]}  Rxc1 {[%clk 0:01:29]} 22. Rxc1 {[%clk 0:02:15]}  Nxa4 {[%clk 0:01:29]} 23. Rc7 {[%clk 0:01:54]}  Nb6 {[%clk 0:00:57]} 24. Rxb7 {[%clk 0:01:44]}  Nc8 {[%clk 0:00:50]} 25. Nc4 {[%clk 0:01:40]}  Be6 {[%clk 0:00:46]} 26. d7 {[%clk 0:01:22]}  Nb6 {[%clk 0:00:25]} 27. Nbd6 {[%clk 0:01:08]}  Nxc4 {[%clk 0:00:22]} 28. Nxc4 {[%clk 0:01:08]}  Bxd7 {[%clk 0:00:14]} 29. Nd6 {[%clk 0:01:08]}  Qe7 {[%clk 0:00:13]} 30. Qd3 {[%clk 0:00:40]}  Qe6 {[%clk 0:00:12]} 31. Rb6 {[%clk 0:00:30]}  Qa2 {[%clk 0:00:08]} 32. Bd5 {[%clk 0:00:29]}  Qa1+ {[%clk 0:00:07]} 33. Kf2 {[%clk 0:00:30]}  Bh3 {[%clk 0:00:07]} 34. Nf7+ {[%clk 0:00:25]}  Kg7 {[%clk 0:00:07]} 35. Rb7 {[%clk 0:00:24]}  Bc8 {[%clk 0:00:04]} 36. Rc7 {[%clk 0:00:17]}  Rxf7 {[%clk 0:00:02]} 37. Rxf7+ {[%clk 0:00:17]}  Kh8 {[%clk 0:00:03]} 38. Qc3 {[%clk 0:00:14]}  Bg4 {[%clk 0:00:02]} 39. Ra7 {[%clk 0:00:06]}  Qd1 {[%clk 0:00:02]} 40. Ra8+ {[%clk 0:00:04]}  Bf8 {[%clk 0:00:02]} 41. Rxf8+ {[%clk 0:00:04]}  Kg7 {[%clk 0:00:03]} 42. Rf7+ {[%clk 0:00:03]}  Kh6 {[%clk 0:00:03]} 43. Qe1 {[%clk 0:00:02]}  Qc2+ {[%clk 0:00:03]} 44. Kg1 {[%clk 0:00:03]}  Bh3 {[%clk 0:00:03]} 45. Rxf6 {[%clk 0:00:03]}  Qc5 {[%clk 0:00:03]} 46. Bg2 {[%clk 0:00:02]}  Bd7 {[%clk 0:00:02]} 47. Rf2 {[%clk 0:00:03]}  Kg7 {[%clk 0:00:02]} 48. Qd2 {[%clk 0:00:03]}  Bb5 {[%clk 0:00:02]} 49. h3 {[%clk 0:00:04]}  Kh6 {[%clk 0:00:02]} 50. Kh2 {[%clk 0:00:04]}  g5 {[%clk 0:00:02]} 51. Bd5 {[%clk 0:00:05]}  Qb4 {[%clk 0:00:01]} 52. e4 {[%clk 0:00:05]}  Qc5 {[%clk 0:00:01]} 53. Rf6+ {[%clk 0:00:05]}  Kh5 {[%clk 0:00:01]} 54. g4+ {[%clk 0:00:05]}  Kh4 {[%clk 0:00:02]} 55. Rh6# {[%clk 0:00:06]} 1-0


[Site "https://www.chess.com"]

[Event "Titled Tuesday Blitz November 29 Early 2022"]
[White "Kukula, Pawel"]
[Black "Ljukin, Sergei"]
[WhiteFideId "1115081"]
[BlackFideId "14102200"]
[WhiteElo "2046"]
[BlackElo "2312"]
[Result "0-1"]
[Round "08"]
[TimeControl "180+1"]
[Date "2022.11.30"]
[WhiteClock "0:00:42"]
[BlackClock "0:00:44"]

1. e4 {[%clk 0:03:00]}  e6 {[%clk 0:02:36]} 2. d4 {[%clk 0:02:59]}  d5 {[%clk 0:02:35]} 3. Nd2 {[%clk 0:02:52]}  Nf6 {[%clk 0:02:35]} 4. e5 {[%clk 0:02:50]}  Nfd7 {[%clk 0:02:35]} 5. Bd3 {[%clk 0:02:47]}  c5 {[%clk 0:02:35]} 6. c3 {[%clk 0:02:46]}  Nc6 {[%clk 0:02:36]} 7. Ne2 {[%clk 0:02:45]}  cxd4 {[%clk 0:02:35]} 8. cxd4 {[%clk 0:02:46]}  f6 {[%clk 0:02:35]} 9. exf6 {[%clk 0:02:41]}  Qxf6 {[%clk 0:02:35]} 10. Nf3 {[%clk 0:02:41]}  h6 {[%clk 0:02:34]} 11. O-O {[%clk 0:02:40]}  Bd6 {[%clk 0:02:35]} 12. Be3 {[%clk 0:02:29]}  O-O {[%clk 0:02:34]} 13. Bc2 {[%clk 0:02:08]}  Rd8 {[%clk 0:02:34]} 14. a3 {[%clk 0:02:05]}  Nf8 {[%clk 0:02:34]} 15. Qd3 {[%clk 0:01:59]}  Bd7 {[%clk 0:02:32]} 16. Rac1 {[%clk 0:01:58]}  Be8 {[%clk 0:02:32]} 17. Qb3 {[%clk 0:01:49]}  Na5 {[%clk 0:02:20]} 18. Qc3 {[%clk 0:01:44]}  Nc4 {[%clk 0:02:18]} 19. Nd2 {[%clk 0:01:35]}  Rac8 {[%clk 0:02:08]} 20. Nxc4 {[%clk 0:01:30]}  Rxc4 {[%clk 0:02:08]} 21. Qd2 {[%clk 0:01:23]}  Rdc8 {[%clk 0:01:47]} 22. Bd3 {[%clk 0:01:21]}  R4c6 {[%clk 0:01:37]} 23. Rxc6 {[%clk 0:01:18]}  bxc6 {[%clk 0:01:35]} 24. Rc1 {[%clk 0:01:15]}  e5 {[%clk 0:01:30]} 25. dxe5 {[%clk 0:01:07]}  Bxe5 {[%clk 0:01:26]} 26. Bd4 {[%clk 0:01:01]}  c5 {[%clk 0:00:56]} 27. Rxc5 {[%clk 0:00:53]}  Bxd4 {[%clk 0:00:54]} 28. Bh7+ {[%clk 0:00:43]}  Nxh7 {[%clk 0:00:44]} 29. Rxc8 {[%clk 0:00:42]} 0-1


[Site "https://www.chess.com"]

[Event "Titled Tuesday Blitz November 29 Early 2022"]
[White "Lauridsen, Jesper Morch"]
[Black "Szyszylo, Rafal"]
[WhiteFideId "1401890"]
[BlackFideId "1109626"]
[WhiteElo "2268"]
[BlackElo "1981"]
[Result "1-0"]
[Round "08"]
[TimeControl "180+1"]
[Date "2022.11.30"]
[WhiteClock "0:00:13"]
[BlackClock "0:00:01"]

1. e4 {[%clk 0:03:00]}  d6 {[%clk 0:03:00]} 2. d4 {[%clk 0:02:58]}  Nf6 {[%clk 0:02:58]} 3. Nc3 {[%clk 0:02:58]}  g6 {[%clk 0:02:57]} 4. Be3 {[%clk 0:02:56]}  c6 {[%clk 0:02:57]} 5. h3 {[%clk 0:02:54]}  Nbd7 {[%clk 0:02:56]} 6. Qd2 {[%clk 0:02:54]}  b5 {[%clk 0:02:55]} 7. Bd3 {[%clk 0:02:51]}  Nb6 {[%clk 0:02:53]} 8. a3 {[%clk 0:02:50]}  Nc4 {[%clk 0:02:52]} 9. Bxc4 {[%clk 0:02:47]}  bxc4 {[%clk 0:02:52]} 10. Nge2 {[%clk 0:02:40]}  Rb8 {[%clk 0:02:52]} 11. Rb1 {[%clk 0:02:40]}  Bg7 {[%clk 0:02:51]} 12. Bh6 {[%clk 0:02:37]}  O-O {[%clk 0:02:50]} 13. Bxg7 {[%clk 0:02:36]}  Kxg7 {[%clk 0:02:51]} 14. O-O {[%clk 0:02:35]}  Qa5 {[%clk 0:02:32]} 15. f4 {[%clk 0:02:31]}  Qh5 {[%clk 0:02:26]} 16. f5 {[%clk 0:02:25]}  Qh6 {[%clk 0:02:14]} 17. Nf4 {[%clk 0:02:16]}  Nh5 {[%clk 0:01:53]} 18. Nxh5+ {[%clk 0:01:58]}  Qxh5 {[%clk 0:01:53]} 19. Ne2 {[%clk 0:01:47]}  Qh6 {[%clk 0:01:41]} 20. f6+ {[%clk 0:01:21]}  exf6 {[%clk 0:01:36]} 21. Qxh6+ {[%clk 0:01:21]}  Kxh6 {[%clk 0:01:36]} 22. Rxf6 {[%clk 0:01:21]}  Be6 {[%clk 0:00:53]} 23. d5 {[%clk 0:00:57]}  cxd5 {[%clk 0:00:52]} 24. exd5 {[%clk 0:00:58]}  Bxd5 {[%clk 0:00:41]} 25. Rxd6 {[%clk 0:00:57]}  Be4 {[%clk 0:00:38]} 26. Nd4 {[%clk 0:00:44]}  Rfd8 {[%clk 0:00:35]} 27. Rxd8 {[%clk 0:00:44]}  Rxd8 {[%clk 0:00:36]} 28. Rd1 {[%clk 0:00:44]}  Rb8 {[%clk 0:00:23]} 29. b3 {[%clk 0:00:35]}  cxb3 {[%clk 0:00:23]} 30. cxb3 {[%clk 0:00:36]}  Kg5 {[%clk 0:00:20]} 31. b4 {[%clk 0:00:33]}  f5 {[%clk 0:00:20]} 32. Kf2 {[%clk 0:00:31]}  a5 {[%clk 0:00:19]} 33. b5 {[%clk 0:00:25]}  Kf4 {[%clk 0:00:15]} 34. a4 {[%clk 0:00:20]}  Rc8 {[%clk 0:00:14]} 35. Ne2+ {[%clk 0:00:16]}  Ke5 {[%clk 0:00:14]} 36. Rc1 {[%clk 0:00:16]}  Rxc1 {[%clk 0:00:05]} 37. Nxc1 {[%clk 0:00:16]}  Bc2 {[%clk 0:00:06]} 38. b6 {[%clk 0:00:15]}  Kd6 {[%clk 0:00:04]} 39. Ne2 {[%clk 0:00:13]}  Bxa4 {[%clk 0:00:01]} 40. Nd4 {[%clk 0:00:13]} 1-0


[Site "https://www.chess.com"]

[Event "Titled Tuesday Blitz November 29 Early 2022"]
[White "Leenhouts, Koen"]
[Black "Ivic, Velimir"]
[WhiteFideId "1008439"]
[BlackFideId "950122"]
[WhiteElo "2409"]
[BlackElo "2625"]
[Result "0-1"]
[Round "08"]
[TimeControl "180+1"]
[Date "2022.11.30"]
[WhiteClock "0:00:01"]
[BlackClock "0:00:33"]

1. d4 {[%clk 0:03:00]}  Nf6 {[%clk 0:02:59]} 2. c4 {[%clk 0:03:01]}  g6 {[%clk 0:02:58]} 3. Nc3 {[%clk 0:03:00]}  Bg7 {[%clk 0:02:59]} 4. e4 {[%clk 0:02:52]}  d6 {[%clk 0:02:59]} 5. f3 {[%clk 0:02:49]}  O-O {[%clk 0:02:59]} 6. Bg5 {[%clk 0:02:49]}  c5 {[%clk 0:02:58]} 7. d5 {[%clk 0:02:48]}  e6 {[%clk 0:02:59]} 8. Qd2 {[%clk 0:02:47]}  exd5 {[%clk 0:02:58]} 9. cxd5 {[%clk 0:02:48]}  h6 {[%clk 0:02:58]} 10. Be3 {[%clk 0:02:47]}  Re8 {[%clk 0:02:58]} 11. Nge2 {[%clk 0:02:45]}  Nbd7 {[%clk 0:02:51]} 12. Bxh6 {[%clk 0:02:35]}  Nxe4 {[%clk 0:02:51]} 13. Nxe4 {[%clk 0:02:35]}  Qh4+ {[%clk 0:02:51]} 14. g3 {[%clk 0:02:35]}  Qxh6 {[%clk 0:02:52]} 15. Qxh6 {[%clk 0:02:35]}  Bxh6 {[%clk 0:02:53]} 16. Nxd6 {[%clk 0:02:35]}  Re5 {[%clk 0:02:41]} 17. f4 {[%clk 0:02:30]}  Rxd5 {[%clk 0:02:40]} 18. Nxc8 {[%clk 0:02:30]}  Rxc8 {[%clk 0:02:41]} 19. Bg2 {[%clk 0:02:28]}  Rd6 {[%clk 0:02:41]} 20. Rd1 {[%clk 0:02:21]}  Rxd1+ {[%clk 0:02:41]} 21. Kxd1 {[%clk 0:02:22]}  Bg7 {[%clk 0:02:35]} 22. Kc2 {[%clk 0:02:21]}  b5 {[%clk 0:02:35]} 23. Nc3 {[%clk 0:01:59]}  Nb6 {[%clk 0:02:28]} 24. Nxb5 {[%clk 0:01:43]}  Nc4 {[%clk 0:02:28]} 25. Re1 {[%clk 0:01:24]}  Rb8 {[%clk 0:02:26]} 26. Bd5 {[%clk 0:01:07]}  Rxb5 {[%clk 0:02:12]} 27. Bxc4 {[%clk 0:01:06]}  Rxb2+ {[%clk 0:02:12]} 28. Kd3 {[%clk 0:01:05]}  Kf8 {[%clk 0:02:12]} 29. Re2 {[%clk 0:00:59]}  Rb1 {[%clk 0:02:11]} 30. Bb3 {[%clk 0:00:56]}  Bd4 {[%clk 0:02:08]} 31. Kc4 {[%clk 0:00:45]}  a6 {[%clk 0:01:41]} 32. Kd5 {[%clk 0:00:43]}  Bg1 {[%clk 0:01:32]} 33. Bc4 {[%clk 0:00:38]}  a5 {[%clk 0:01:31]} 34. Kc6 {[%clk 0:00:35]}  a4 {[%clk 0:01:31]} 35. f5 {[%clk 0:00:18]}  gxf5 {[%clk 0:01:16]} 36. Re5 {[%clk 0:00:18]}  Rc1 {[%clk 0:01:17]} 37. Kb5 {[%clk 0:00:15]}  Bd4 {[%clk 0:01:05]} 38. Rxf5 {[%clk 0:00:15]}  f6 {[%clk 0:01:06]} 39. g4 {[%clk 0:00:13]}  Rb1+ {[%clk 0:01:03]} 40. Kc6 {[%clk 0:00:11]}  Rb4 {[%clk 0:01:02]} 41. Kd5 {[%clk 0:00:10]}  Kg7 {[%clk 0:00:50]} 42. g5 {[%clk 0:00:10]}  Kg6 {[%clk 0:00:49]} 43. Bd3 {[%clk 0:00:07]}  fxg5 {[%clk 0:00:46]} 44. Rf8+ {[%clk 0:00:06]}  Kg7 {[%clk 0:00:45]} 45. Ra8 {[%clk 0:00:05]}  Rb2 {[%clk 0:00:42]} 46. Ra7+ {[%clk 0:00:05]}  Kf6 {[%clk 0:00:41]} 47. Ra6+ {[%clk 0:00:05]}  Ke7 {[%clk 0:00:42]} 48. Ra7+ {[%clk 0:00:05]}  Kd8 {[%clk 0:00:41]} 49. Kd6 {[%clk 0:00:05]}  Kc8 {[%clk 0:00:37]} 50. Rf7 {[%clk 0:00:02]}  Rb6+ {[%clk 0:00:33]} 51. Kd5 {[%clk 0:00:01]}  Rh6 {[%clk 0:00:33]} 0-1


[Site "https://www.chess.com"]

[Event "Titled Tuesday Blitz November 29 Early 2022"]
[White "Leve, Nitai"]
[Black "Aarav Dengla"]
[WhiteFideId "2006898"]
[BlackFideId "45059756"]
[WhiteElo "2144"]
[BlackElo "2261"]
[Result "1-0"]
[Round "08"]
[TimeControl "180+1"]
[Date "2022.11.30"]
[WhiteClock "0:00:02"]
[BlackClock "0:00:02"]

1. e4 {[%clk 0:03:00]}  c5 {[%clk 0:02:58]} 2. Nf3 {[%clk 0:02:58]}  d6 {[%clk 0:02:57]} 3. d4 {[%clk 0:02:58]}  cxd4 {[%clk 0:02:58]} 4. Qxd4 {[%clk 0:02:59]}  Nc6 {[%clk 0:02:57]} 5. Bb5 {[%clk 0:02:59]}  Bd7 {[%clk 0:02:57]} 6. Bxc6 {[%clk 0:02:59]}  Bxc6 {[%clk 0:02:58]} 7. Nc3 {[%clk 0:02:59]}  e5 {[%clk 0:02:56]} 8. Qd3 {[%clk 0:02:59]}  h6 {[%clk 0:02:57]} 9. Be3 {[%clk 0:02:58]}  Nf6 {[%clk 0:02:57]} 10. O-O-O {[%clk 0:02:59]}  Be7 {[%clk 0:02:57]} 11. Rhg1 {[%clk 0:02:57]}  Qa5 {[%clk 0:02:44]} 12. g4 {[%clk 0:02:54]}  Rc8 {[%clk 0:02:43]} 13. g5 {[%clk 0:02:49]}  hxg5 {[%clk 0:02:42]} 14. Nxg5 {[%clk 0:02:49]}  Bd7 {[%clk 0:02:33]} 15. f4 {[%clk 0:01:38]}  Rxc3 {[%clk 0:01:55]} 16. Qxc3 {[%clk 0:01:33]}  Qxc3 {[%clk 0:01:52]} 17. bxc3 {[%clk 0:01:34]}  Bc6 {[%clk 0:01:50]} 18. fxe5 {[%clk 0:01:28]}  dxe5 {[%clk 0:01:51]} 19. Nf3 {[%clk 0:01:23]}  Nxe4 {[%clk 0:01:46]} 20. Nxe5 {[%clk 0:01:16]}  Ba3+ {[%clk 0:01:37]} 21. Kb1 {[%clk 0:01:15]}  Nxc3+ {[%clk 0:01:36]} 22. Ka1 {[%clk 0:01:15]}  Nxd1 {[%clk 0:01:34]} 23. Rxd1 {[%clk 0:01:16]}  Rxh2 {[%clk 0:01:22]} 24. Nxc6 {[%clk 0:00:46]}  bxc6 {[%clk 0:01:23]} 25. Bxa7 {[%clk 0:00:41]}  Rxc2 {[%clk 0:01:10]} 26. Bd4 {[%clk 0:00:41]}  g6 {[%clk 0:01:04]} 27. Bf6 {[%clk 0:00:41]}  Be7 {[%clk 0:00:52]} 28. Re1 {[%clk 0:00:39]}  Rc1+ {[%clk 0:00:50]} 29. Rxc1 {[%clk 0:00:38]}  Bxf6+ {[%clk 0:00:51]} 30. Kb1 {[%clk 0:00:39]}  Kd7 {[%clk 0:00:48]} 31. a4 {[%clk 0:00:38]}  Bd4 {[%clk 0:00:45]} 32. Kc2 {[%clk 0:00:31]}  f5 {[%clk 0:00:43]} 33. Kb3 {[%clk 0:00:26]}  g5 {[%clk 0:00:38]} 34. Kc4 {[%clk 0:00:23]}  Be3 {[%clk 0:00:34]} 35. Rd1+ {[%clk 0:00:14]}  Kc7 {[%clk 0:00:33]} 36. a5 {[%clk 0:00:15]}  g4 {[%clk 0:00:29]} 37. Kd3 {[%clk 0:00:14]}  f4 {[%clk 0:00:28]} 38. Ke4 {[%clk 0:00:14]}  c5 {[%clk 0:00:26]} 39. Rb1 {[%clk 0:00:13]}  c4 {[%clk 0:00:18]} 40. a6 {[%clk 0:00:12]}  c3 {[%clk 0:00:17]} 41. a7 {[%clk 0:00:12]}  Bxa7 {[%clk 0:00:12]} 42. Kxf4 {[%clk 0:00:12]}  Kc6 {[%clk 0:00:10]} 43. Rc1 {[%clk 0:00:10]}  Bd4 {[%clk 0:00:09]} 44. Kxg4 {[%clk 0:00:10]}  Kd5 {[%clk 0:00:10]} 45. Kf3 {[%clk 0:00:09]}  Kc4 {[%clk 0:00:11]} 46. Ke2 {[%clk 0:00:09]}  Kb3 {[%clk 0:00:11]} 47. Kd3 {[%clk 0:00:09]}  Kb2 {[%clk 0:00:08]} 48. Rc2+ {[%clk 0:00:09]}  Kb3 {[%clk 0:00:08]} 49. Rc1 {[%clk 0:00:08]}  Kb2 {[%clk 0:00:08]} 50. Rc2+ {[%clk 0:00:08]}  Kb3 {[%clk 0:00:08]} 51. Rg2 {[%clk 0:00:09]}  Be5 {[%clk 0:00:08]} 52. Rg6 {[%clk 0:00:06]}  Kb2 {[%clk 0:00:06]} 53. Rb6+ {[%clk 0:00:05]}  Kc1 {[%clk 0:00:05]} 54. Rb5 {[%clk 0:00:06]}  Bf6 {[%clk 0:00:04]} 55. Rb6 {[%clk 0:00:05]}  Bg7 {[%clk 0:00:05]} 56. Rg6 {[%clk 0:00:05]}  Bh8 {[%clk 0:00:04]} 57. Rg2 {[%clk 0:00:06]}  Kb1 {[%clk 0:00:02]} 58. Rg1+ {[%clk 0:00:03]}  Kb2 {[%clk 0:00:01]} 59. Rg2+ {[%clk 0:00:02]}  Kb1 {[%clk 0:00:01]} 60. Rc2 {[%clk 0:00:02]}  Be5 {[%clk 0:00:02]} 61. Re2 {[%clk 0:00:02]} 1-0


[Site "https://www.chess.com"]

[Event "Titled Tuesday Blitz November 29 Early 2022"]
[White "Makhmudov, Shukhrat"]
[Black "Gheorghiu, Calin"]
[WhiteFideId "14200775"]
[BlackFideId "1200305"]
[WhiteElo "2135"]
[BlackElo "2225"]
[Result "1-0"]
[Round "08"]
[TimeControl "180+1"]
[Date "2022.11.30"]
[WhiteClock "0:00:12"]
[BlackClock "0:00:16"]

1. e4 {[%clk 0:02:57]}  e5 {[%clk 0:02:57]} 2. Nf3 {[%clk 0:02:57]}  Nc6 {[%clk 0:02:57]} 3. Bc4 {[%clk 0:02:56]}  Nf6 {[%clk 0:02:56]} 4. Ng5 {[%clk 0:02:48]}  d5 {[%clk 0:02:55]} 5. exd5 {[%clk 0:02:48]}  Na5 {[%clk 0:02:55]} 6. d3 {[%clk 0:02:49]}  h6 {[%clk 0:02:46]} 7. Nf3 {[%clk 0:02:48]}  e4 {[%clk 0:02:46]} 8. Qe2 {[%clk 0:02:49]}  Nxc4 {[%clk 0:02:37]} 9. dxc4 {[%clk 0:02:49]}  Bd6 {[%clk 0:02:36]} 10. c3 {[%clk 0:02:48]}  O-O {[%clk 0:02:35]} 11. Nd4 {[%clk 0:02:49]}  Bg4 {[%clk 0:02:35]} 12. Qe3 {[%clk 0:02:49]}  Re8 {[%clk 0:02:28]} 13. O-O {[%clk 0:02:46]}  c6 {[%clk 0:02:21]} 14. dxc6 {[%clk 0:02:43]}  bxc6 {[%clk 0:02:22]} 15. h3 {[%clk 0:02:41]}  Bd7 {[%clk 0:02:17]} 16. Nb3 {[%clk 0:02:23]}  Qe7 {[%clk 0:02:09]} 17. c5 {[%clk 0:02:02]}  Bc7 {[%clk 0:02:07]} 18. c4 {[%clk 0:01:34]}  Qe5 {[%clk 0:01:55]} 19. Qg3 {[%clk 0:01:32]}  Qxg3 {[%clk 0:01:49]} 20. fxg3 {[%clk 0:01:31]}  Bxg3 {[%clk 0:01:38]} 21. Be3 {[%clk 0:01:29]}  Be5 {[%clk 0:01:26]} 22. Nc3 {[%clk 0:01:29]}  Be6 {[%clk 0:01:23]} 23. Na5 {[%clk 0:01:26]}  Rec8 {[%clk 0:01:16]} 24. Rac1 {[%clk 0:01:16]}  Bd7 {[%clk 0:01:01]} 25. Rfd1 {[%clk 0:01:10]}  Rab8 {[%clk 0:00:58]} 26. b3 {[%clk 0:01:04]}  Bc7 {[%clk 0:00:56]} 27. Rxd7 {[%clk 0:00:48]}  Nxd7 {[%clk 0:00:42]} 28. Nxc6 {[%clk 0:00:48]}  Ra8 {[%clk 0:00:41]} 29. Ne7+ {[%clk 0:00:47]}  Kf8 {[%clk 0:00:39]} 30. Nxc8 {[%clk 0:00:47]}  Rxc8 {[%clk 0:00:40]} 31. b4 {[%clk 0:00:26]}  f5 {[%clk 0:00:36]} 32. b5 {[%clk 0:00:20]}  Be5 {[%clk 0:00:34]} 33. c6 {[%clk 0:00:16]}  Nb6 {[%clk 0:00:33]} 34. Nd5 {[%clk 0:00:13]}  Nxd5 {[%clk 0:00:32]} 35. cxd5 {[%clk 0:00:13]}  f4 {[%clk 0:00:33]} 36. Bc5+ {[%clk 0:00:13]}  Ke8 {[%clk 0:00:34]} 37. d6 {[%clk 0:00:14]}  Kf7 {[%clk 0:00:25]} 38. d7 {[%clk 0:00:13]}  Ra8 {[%clk 0:00:21]} 39. Bxa7 {[%clk 0:00:13]}  e3 {[%clk 0:00:19]} 40. b6 {[%clk 0:00:13]}  e2 {[%clk 0:00:18]} 41. Re1 {[%clk 0:00:13]}  Bd4+ {[%clk 0:00:18]} 42. Kh2 {[%clk 0:00:13]}  f3 {[%clk 0:00:16]} 43. gxf3 {[%clk 0:00:12]} 1-0


[Site "https://www.chess.com"]